bitfinex/quotes_ETHUSD_20240715
["timestamp","ask_amount","ask_price","bid_price","bid_amount"]
[1721065052247,2.9463,3394.1,3393.3,2.94691]
[1721065053183,2.9463,3394.1,3393.1,2.94711]
[1721065053184,2.4122,3393.9,3393.1,2.94711]
[1721065053484,2.4122,3393.9,3393.2,2.94706]
[1721065056865,2.4122,3393.9,3393.1,2.94712]
[1721065056866,5.35866,3393.9,3393.1,2.94712]
[1721065057094,2.4122,3393.9,3392.9,2.94729]
[1721065057281,2.94664,3393.7,3393.0,2.94723]
[1721065057484,0.589247,3394.1,3393.2,2.94704]
[1721065058500,2.94641,3394.0,3393.2,2.94704]
[1721065059024,2.94641,3394.0,3393.0,2.94723]
[1721065059025,2.94655,3393.8,3393.0,2.94723]
[1721065060171,2.94655,3393.8,3392.8,2.94738]
[1721065060380,2.4396,3393.6,3392.8,2.94738]
[1721065060565,2.4396,3393.6,3392.9,2.94733]
[1721065061061,2.9465,3393.9,3393.0,2.94722]
[1721065061266,2.94659,3393.8,3393.0,2.94722]
[1721065061887,2.94664,3393.7,3393.0,2.94722]
[1721065063018,2.94664,3393.7,3392.8,5.89473]
[1721065063169,2.9468,3393.6,3392.7,2.94743]
[1721065063376,2.94682,3393.5,3392.7,2.94743]
[1721065064127,2.94691,3393.4,3392.6,2.94758]
[1721065064482,2.94717,3393.1,3392.1,2.94794]
[1721065064700,2.94717,3393.1,3392.2,2.94789]
[1721065064919,6.712827,3393.1,3392.3,2.94783]
[1721065065212,6.712827,3393.1,3392.0,2.9481]
[1721065065213,3.765587,3393.1,3392.0,2.9481]
[1721065065375,2.94737,3392.9,3392.0,2.9481]
[1721065065775,2.94766,3392.6,3391.6,10.34845]
[1721065066083,2.94766,3392.6,3391.7,2.94832]
[1721065066297,2.94766,3392.6,3391.8,2.94827]
[1721065066826,2.94743,3392.8,3391.8,2.94827]
[1721065067023,2.9475,3392.7,3391.8,2.94827]
[1721065067235,2.94759,3392.6,3391.8,2.94827]
[1721065067928,2.94759,3392.6,3391.7,2.94837]
[1721065068984,2.94759,3392.6,3391.8,2.94827]
[1721065069319,4.1054827,3392.8,3391.9,2.94819]
[1721065069484,1.19201627,3392.7,3391.9,2.94819]
[1721065069688,2.553,3392.9,3392.1,2.94799]
[1721065069887,5.26168,3393.0,3392.1,2.94799]
[1721065070191,5.26168,3393.0,3392.2,2.94793]
[1721065070398,2.94735,3392.9,3392.2,2.94793]
[1721065070772,2.94735,3392.9,3392.0,2.94804]
[1721065071088,3.8501647,3392.8,3392.0,2.94804]
[1721065071283,3.8501647,3392.8,3391.7,2.94833]
[1721065071504,2.94759,3392.6,3391.7,2.94831]
[1721065071807,2.94759,3392.6,3391.8,2.94821]
[1721065072989,3.8501647,3392.8,3391.9,2.94819]
[1721065073184,0.9027447,3392.8,3392.1,2.94801]
[1721065076272,5.26165,3393.0,3392.1,2.94801]
[1721065076909,2.94734,3392.9,3392.1,2.94801]
[1721065078119,2.3144,3393.0,3392.1,2.94801]
[1721065078819,2.3144,3393.0,3392.3,2.94784]
[1721065079000,0.9027117,3392.9,3392.3,2.94784]
[1721065079201,0.9027117,3392.9,3392.1,2.94801]
[1721065079443,3.8500617,3392.9,3392.1,2.94801]
[1721065079938,2.3176,3392.8,3391.7,2.94834]
[1721065080227,2.94781,3392.4,3391.6,2.9484]
[1721065080586,2.94781,3392.4,3391.7,2.94836]
[1721065081627,2.94781,3392.4,3391.3,0.1188174]
[1721065081836,8.4226,3392.8,3391.3,0.1188174]
[1721065081837,2.4463,3392.1,3391.3,0.1188174]
[1721065082038,2.94811,3392.0,3391.3,0.1188174]
[1721065082323,2.948,3392.2,3391.3,3.0674774]
[1721065082494,4.9993,3392.5,3391.4,2.94856]
[1721065082495,2.4463,3392.5,3391.4,2.94856]
[1721065082821,2.94785,3392.3,3391.6,2.94845]
[1721065083337,3.782028,3392.3,3391.6,2.94845]
[1721065083521,2.94785,3392.3,3391.6,2.94845]
[1721065084424,5.39403,3392.5,3391.6,2.94845]
[1721065084592,0.04490717,3392.4,3392.0,2.9481]
[1721065084793,2.94751,3392.7,3391.9,2.94819]
[1721065084990,5.94743,3392.8,3391.5,2.94853]
[1721065084991,0.04495382,3392.3,3391.5,2.94853]
[1721065085192,2.94759,3392.6,3391.5,2.94853]
[1721065085520,0.594759,3392.5,3391.5,2.94853]
[1721065086098,2.94776,3392.4,3391.5,2.94853]
[1721065086801,2.94776,3392.4,3391.7,2.94835]
[1721065087144,0.594759,3392.5,3391.7,2.94829]
[1721065087300,4.8649,3392.9,3392.1,2.948]
[1721065087535,2.9471,3393.2,3392.3,2.94777]
[1721065087536,2.94715,3393.1,3392.3,2.94777]
[1721065087929,2.4001,3393.3,3391.8,2.4256]
[1721065087930,8.0581,3393.3,3391.8,2.4256]
[1721065088225,2.94756,3392.7,3391.9,2.94818]
[1721065088426,2.9476,3392.6,3391.9,2.94818]
[1721065088732,2.94777,3392.4,3391.6,2.94843]
[1721065089034,2.94777,3392.4,3391.4,2.94857]
[1721065089035,2.99123028,3392.3,3391.4,2.94857]
[1721065089239,2.99123028,3392.3,3391.5,2.94852]
[1721065089398,2.99123028,3392.3,3391.3,3.0675074]
[1721065089399,2.94809,3392.1,3391.3,0.1188174]
[1721065089634,2.94813,3392.0,3391.3,0.1188174]
[1721065089816,2.99135833,3392.0,3391.3,0.1188174]
[1721065090539,2.9482,3391.9,3391.3,0.1188174]
[1721065090930,2.99144313,3391.8,3391.3,0.1188174]
[1721065091442,2.94843,3391.7,3391.3,0.1188174]
[1721065091621,2.99147522,3391.7,3391.3,0.1188174]
[1721065092034,2.94846,3391.6,3391.3,0.1188174]
[1721065092343,0.82434352,3391.5,3391.3,0.1188174]
[1721065092652,0.04422558,3391.4,3391.3,0.1188174]
[1721065093406,2.94844,3391.7,3391.3,0.1188174]
[1721065093730,0.04422558,3391.4,3391.3,0.1188174]
[1721065093935,2.94851,3391.6,3391.3,0.1188174]
[1721065094132,0.04422558,3391.4,3391.3,0.1188174]
[1721065094323,2.94851,3391.6,3391.3,0.1188174]
[1721065094523,0.04422558,3391.4,3391.3,0.1188174]
[1721065094728,3.768552,3391.6,3391.3,0.1188174]
[1721065094916,0.04422558,3391.4,3391.3,0.1188174]
[1721065095115,3.768552,3391.6,3391.3,0.1188174]
[1721065095431,2.94863,3391.4,3391.3,0.1188174]
[1721065095632,0.04428316,3391.5,3391.3,0.1188174]
[1721065095833,0.0442451,3391.4,3391.3,0.1188174]
[1721065096034,2.9482,3391.9,3391.3,0.1188174]
[1721065096242,0.0442451,3391.4,3391.3,0.1188174]
[1721065096552,2.94844,3391.7,3391.3,0.1188174]
[1721065096854,0.589664,3391.6,3391.3,0.1188174]
[1721065097048,0.63404376,3391.6,3391.3,0.1188174]
[1721065097219,0.04437976,3391.6,3391.3,0.1188174]
[1721065097434,3.59392983,3392.0,3391.3,0.1188174]
[1721065097435,3.54203983,3392.0,3391.3,0.1188174]
[1721065097635,0.04291353,3391.5,3391.3,0.1188174]
[1721065097847,5.94798,3392.2,3391.3,0.1188174]
[1721065097848,3.0,3392.2,3391.3,0.1188174]
[1721065098149,7.3,3392.9,3391.4,2.44737041]
[1721065098311,2.94742,3392.8,3391.9,2.94814]
[1721065099293,2.4428,3393.1,3391.7,2.94833]
[1721065099294,2.9910209,3392.7,3391.7,2.94833]
[1721065099486,2.9910209,3392.7,3391.3,0.1188174]
[1721065099487,2.4415,3392.3,3391.3,0.1188174]
[1721065099668,2.94804,3392.1,3391.3,0.1188174]
[1721065099841,5.5465,3392.3,3391.3,0.1188174]
[1721065099842,2.94825,3391.9,3391.3,0.1188174]
[1721065100047,2.94834,3391.8,3391.3,0.1188174]
[1721065100262,2.99127437,3391.8,3391.3,0.1188174]
[1721065100477,2.94839,3391.7,3391.3,0.1188174]
[1721065100690,2.94855,3391.5,3391.3,0.1188174]
[1721065100902,2.94863,3391.4,3391.3,0.1188174]
[1721065101047,2.99133408,3391.4,3391.3,0.1188174]
[1721065102225,0.04270408,3391.4,3391.3,0.1188174]
[1721065102363,7.3,3392.1,3391.3,0.1188174]
[1721065102690,3.04296996,3392.0,3391.3,0.1188174]
[1721065102847,0.04296996,3392.0,3391.3,0.1188174]
[1721065103048,2.4415,3392.3,3391.3,0.1188174]
[1721065103245,0.04291292,3391.9,3391.3,0.1188174]
[1721065103512,3.24415,3392.2,3391.3,0.1188174]
[1721065103749,2.94828,3391.8,3391.3,0.1188174]
[1721065104753,2.94942,3390.5,3389.6,2.95019]
[1721065105061,2.94942,3390.5,3389.5,2.2599]
[1721065105062,0.04047012,3390.5,3389.5,2.2599]
[1721065105269,2.94959,3390.3,3389.5,5.21012]
[1721065105683,0.04029712,3390.2,3389.5,5.21012]
[1721065106262,0.04029712,3390.2,3389.6,2.95019]
[1721065106450,0.33928583,3390.2,3389.4,2.95031]
[1721065106779,0.33928583,3390.2,3389.5,2.95027]
[1721065106980,3.28896583,3390.2,3389.1,2.3333]
[1721065107281,2.94978,3390.1,3389.1,5.28385]
[1721065107585,2.98997646,3390.1,3389.1,5.28385]
[1721065107879,0.62386452,3390.0,3389.3,2.9504]
[1721065108104,0.04001524,3390.0,3389.1,2.3333]
[1721065108378,2.9495,3390.4,3389.6,2.95013]
[1721065108547,2.94959,3390.3,3389.4,2.95031]
[1721065109177,2.94959,3390.3,3389.3,2.95043]
[1721065109380,3.0,3390.5,3389.6,2.95017]
[1721065109559,3.5739751,3390.4,3389.4,2.95031]
[1721065109766,2.94959,3390.3,3389.4,2.95031]
[1721065109969,2.94959,3390.3,3389.3,2.95043]
[1721065109970,2.99093502,3390.2,3389.3,2.95043]
[1721065110272,2.99093502,3390.2,3389.4,2.95036]
[1721065111368,0.04122502,3390.2,3389.4,2.95036]
[1721065111569,3.65745049,3390.2,3389.5,2.95027]
[1721065111793,0.04116738,3390.1,3389.5,2.95027]
[1721065112289,2.94967,3390.3,3389.5,2.95027]
[1721065112793,0.04122502,3390.2,3389.5,2.95027]
[1721065113106,2.99091502,3390.2,3389.3,2.95045]
[1721065113412,0.2990895,3390.1,3389.4,2.95036]
[1721065113564,0.34025688,3390.1,3389.4,2.95036]
[1721065114080,2.94985,3390.0,3388.9,2.9508]
[1721065114302,0.32901069,3389.9,3388.9,2.9508]
[1721065114609,0.32901069,3389.9,3389.1,2.95056]
[1721065115160,0.32901069,3389.9,3388.9,2.9508]
[1721065115477,2.95017,3389.7,3388.9,2.9508]
[1721065115679,3.27901069,3389.9,3388.9,2.9508]
[1721065115878,0.67242676,3389.8,3388.9,2.9508]
[1721065116079,0.67242676,3389.8,3389.1,2.95062]
[1721065116293,0.67242676,3389.8,3389.2,2.95054]
[1721065116584,0.34025688,3390.1,3389.5,2.95027]
[1721065117159,0.34025688,3390.1,3389.3,2.9504]
[1721065117499,0.34025688,3390.1,3389.4,2.95034]
[1721065117799,0.34025688,3390.1,3389.2,2.95052]
[1721065117800,0.34025688,3390.1,3389.5,2.95028]
[1721065117995,0.04116738,3390.1,3389.5,2.95028]
[1721065118159,3.4120172,3390.6,3389.7,2.95005]
[1721065118160,0.4626772,3390.6,3389.7,2.95005]
[1721065118357,0.0413792,3390.5,3389.7,2.95005]
[1721065119197,0.0413792,3390.5,3389.8,2.94998]
[1721065119758,2.9908192,3390.5,3389.7,2.95005]
[1721065119990,1.13202592,3390.4,3389.7,2.95005]
[1721065120492,2.94967,3390.2,3389.3,2.9504]
[1721065120714,2.94967,3390.2,3389.4,2.95034]
[1721065120861,0.04114866,3390.1,3389.5,2.95027]
[1721065121060,4.08153592,3390.4,3389.5,2.95027]
[1721065121297,0.04109101,3390.0,3389.5,2.95027]
[1721065121513,4.08153592,3390.4,3389.5,2.95027]
[1721065121690,0.04103337,3389.9,3389.5,2.95027]
[1721065121864,0.40815359,3390.3,3389.5,2.95027]
[1721065122065,0.04097572,3389.8,3389.5,2.95027]
[1721065122331,2.94973,3390.2,3389.3,2.9504]
[1721065122683,0.04114866,3390.1,3389.3,2.9504]
[1721065123010,1.51920548,3390.1,3389.4,2.95029]
[1721065123245,1.51920548,3390.1,3389.4,2.95035]
[1721065123410,0.04114866,3390.1,3389.7,2.95005]
[1721065123577,0.40815359,3390.3,3389.7,2.95005]
[1721065123781,0.0412063,3390.2,3389.7,2.95005]
[1721065124482,0.0412063,3390.2,3390.0,2.94979]
[1721065124837,7.3,3390.4,3390.2,2.9496]
[1721065125001,7.3,3391.0,3390.2,2.9496]
[1721065125178,1.25684,3390.9,3390.2,2.9496]
[1721065125716,9.6195,3391.5,3390.6,2.94926]
[1721065125913,2.3195,3391.5,3390.6,2.94926]
[1721065126081,2.94863,3391.4,3390.6,2.94926]
[1721065126278,2.94872,3391.3,3390.6,2.94926]
[1721065126482,2.94872,3391.3,3390.3,2.94956]
[1721065126714,0.821685,3391.2,3390.3,2.94956]
[1721065126888,2.94889,3391.1,3390.1,2.94972]
[1721065127082,2.94889,3391.1,3389.9,2.3528]
[1721065127083,2.949,3391.0,3390.2,2.94966]
[1721065127717,2.94889,3391.1,3390.3,2.94954]
[1721065128317,0.04024285,3391.0,3390.3,2.94954]
[1721065128885,3.66519663,3391.0,3389.9,5.30266]
[1721065129093,2.98924285,3391.0,3390.1,2.94971]
[1721065129312,2.98924285,3391.0,3389.9,5.30266]
[1721065129313,2.94925,3390.7,3389.9,2.94986]
[1721065129514,1.072512,3390.6,3390.0,2.94979]
[1721065129827,1.072512,3390.6,3389.4,2.4849]
[1721065129828,1.11231478,3390.6,3389.4,2.4849]
[1721065129991,0.03980278,3390.6,3389.4,2.4849]
[1721065130430,2.2678,3390.8,3389.9,2.94985]
[1721065130593,0.03977112,3390.5,3389.9,2.94985]
[1721065130994,0.03971349,3390.4,3389.5,2.95024]
[1721065131189,2.94903,3391.0,3389.4,2.4849]
[1721065131190,2.94903,3391.0,3390.2,2.94959]
[1721065131410,0.521703,3390.9,3390.2,2.94964]
[1721065131612,0.5617046,3390.9,3390.2,2.94964]
[1721065132231,3.5107746,3390.9,3390.2,2.94964]
[1721065133592,3.5107746,3390.9,3390.1,2.94976]
[1721065133926,0.5617046,3390.9,3390.3,2.94956]
[1721065134138,0.5617046,3390.9,3390.4,2.94949]
[1721065134312,0.5617046,3390.9,3390.6,2.94926]
[1721065134313,0.0400016,3390.9,3390.6,2.94926]
[1721065134629,10.24849,3391.6,3391.0,2.94893]
[1721065134630,7.3,3391.6,3391.0,2.94893]
[1721065134926,2.94811,3392.0,3391.0,2.94893]
[1721065135125,0.589643,3391.7,3391.0,2.94893]
[1721065135520,0.04040637,3391.6,3391.0,2.94893]
[1721065135922,0.04040637,3391.6,3391.3,2.94871]
[1721065136300,2.94816,3392.0,3391.3,2.94871]
[1721065136738,5.41236,3392.1,3391.3,2.94871]
[1721065136914,1.566033,3392.0,3391.3,2.94871]
[1721065137113,1.566033,3392.0,3391.4,2.94862]
[1721065137430,2.559,3392.5,3391.8,2.94822]
[1721065137431,2.94767,3392.5,3391.8,2.94822]
[1721065138159,2.3962,3392.6,3391.9,2.94819]
[1721065138300,0.46240725,3392.8,3391.9,2.94819]
[1721065138301,3.40988725,3392.8,3391.9,2.94819]
[1721065138644,0.87533673,3392.7,3392.1,2.94797]
[1721065138843,2.94761,3392.6,3391.6,5.36384]
[1721065139010,2.94784,3392.4,3391.6,2.94844]
[1721065139911,2.94794,3392.2,3391.2,5.36419]
[1721065140116,2.94804,3392.1,3391.2,5.36419]
[1721065140350,0.829209,3392.0,3391.3,2.9487]
[1721065140645,0.829209,3392.0,3391.4,2.94857]
[1721065140796,0.829209,3392.0,3391.0,5.89788]
[1721065141137,0.829209,3392.0,3390.7,2.4668]
[1721065141444,0.829209,3392.0,3391.4,2.94857]
[1721065141605,2.3962,3392.2,3391.4,2.94857]
[1721065141946,2.94802,3392.1,3391.3,2.94867]
[1721065142152,2.3962,3392.2,3391.4,2.94861]
[1721065142498,3.0,3392.3,3390.7,2.4668]
[1721065142741,7.3,3392.6,3392.0,2.9481]
[1721065143000,3.26943673,3392.7,3391.4,2.3257]
[1721065143001,4.29944167,3392.5,3391.7,2.94834]
[1721065143200,1.35169167,3392.5,3391.7,2.94834]
[1721065143633,1.35169167,3392.5,3391.4,2.3257]
[1721065143944,3.26943673,3392.7,3392.0,2.94802]
[1721065144150,3.26943673,3392.7,3392.1,2.94802]
[1721065146244,6.21696673,3392.7,3391.6,2.94843]
[1721065146459,6.21696673,3392.7,3391.7,2.94832]
[1721065146619,6.21696673,3392.7,3391.4,2.3257]
[1721065146620,2.94776,3392.4,3391.4,5.27427]
[1721065146832,2.94776,3392.4,3391.4,2.94857]
[1721065146833,2.94791,3392.3,3391.4,2.94857]
[1721065147053,2.94796,3392.2,3391.2,2.94873]
[1721065147365,2.94803,3392.1,3391.4,2.94861]
[1721065147532,0.589599,3392.0,3391.2,2.94873]
[1721065147732,3.076499,3392.0,3391.3,2.94871]
[1721065148055,3.076499,3392.0,3390.8,2.3071]
[1721065148436,6.024629,3392.0,3391.0,2.94895]
[1721065148644,3.076499,3392.0,3391.2,2.94879]
[1721065148952,0.6024469,3391.9,3391.2,2.94879]
[1721065149160,3.5506569,3391.9,3391.0,2.94895]
[1721065149534,3.5506569,3391.9,3391.1,2.94888]
[1721065149727,2.94829,3391.8,3391.0,2.94897]
[1721065149927,0.89858069,3391.7,3391.1,2.94888]
[1721065150337,0.89858069,3391.7,3390.8,2.9491]
[1721065150667,0.89858069,3391.7,3390.7,2.94918]
[1721065150971,2.94855,3391.5,3390.7,2.94918]
[1721065151473,3.84701069,3391.7,3390.8,2.94914]
[1721065151625,3.40956276,3391.6,3390.8,2.94914]
[1721065151965,3.40956276,3391.6,3390.4,2.2762]
[1721065151966,0.46110276,3391.6,3390.4,2.2762]
[1721065152167,0.6024469,3391.9,3391.3,2.94867]
[1721065152475,2.94842,3391.7,3390.9,2.94906]
[1721065152631,2.94842,3391.7,3390.7,2.94921]
[1721065152632,2.94855,3391.5,3390.7,2.94921]
[1721065153350,2.94865,3391.4,3390.6,2.94928]
[1721065153722,2.2567,3390.9,3390.0,2.94978]
[1721065153923,0.52057,3390.8,3390.0,2.94978]
[1721065154175,3.46975,3390.8,3390.0,2.94978]
[1721065154521,3.46975,3390.8,3390.1,2.94975]
[1721065155477,0.52057,3390.8,3390.3,2.94957]
[1721065155835,2.94877,3391.3,3390.5,2.94941]
[1721065156035,3.0,3391.2,3390.5,2.94941]
[1721065156477,2.3989,3391.8,3390.2,2.4905]
[1721065156689,2.3989,3391.8,3391.0,2.94896]
[1721065156993,0.6024469,3391.9,3391.4,2.94863]
[1721065157301,10.24802,3392.1,3391.4,2.94863]
[1721065157755,10.24802,3392.1,3391.2,2.94874]
[1721065157756,2.94812,3392.0,3391.2,2.94874]
[1721065158375,2.94812,3392.0,3391.3,2.94872]
[1721065158785,2.94812,3392.0,3391.0,2.94895]
[1721065158956,2.94828,3391.9,3391.0,2.94895]
[1721065159284,1.31964,3391.8,3391.0,2.94895]
[1721065159594,2.94846,3391.6,3390.9,2.94906]
[1721065161798,2.94846,3391.6,3390.8,2.94914]
[1721065162086,2.94855,3391.5,3390.6,2.94926]
[1721065162254,0.589701,3391.4,3390.6,2.94926]
[1721065162452,0.589701,3391.4,3390.7,2.94924]
[1721065162852,0.589701,3391.4,3390.8,2.94909]
[1721065165187,0.589701,3391.4,3390.8,5.89817]
[1721065165392,0.589701,3391.4,3390.8,2.94908]
[1721065165687,0.8984811,3391.3,3390.8,2.94908]
[1721065165898,0.8984811,3391.3,3390.9,2.94906]
[1721065167058,2.4981,3391.5,3390.7,2.94922]
[1721065167258,2.9488,3391.2,3390.5,2.9494]
[1721065167453,2.9487,3391.4,3390.5,2.9494]
[1721065167691,0.55,3391.3,3390.5,2.9494]
[1721065167995,0.59968,3391.2,3390.5,2.9494]
[1721065168498,0.59968,3391.2,3390.6,2.94932]
[1721065169498,6.49738,3391.2,3390.2,2.9496]
[1721065169664,2.94913,3390.9,3390.1,5.8994]
[1721065169860,2.94913,3390.9,3390.1,2.94967]
[1721065170089,2.94913,3390.9,3390.2,2.94962]
[1721065170272,3.653658,3391.1,3390.3,2.94958]
[1721065170475,3.49898,3391.0,3390.3,2.94958]
[1721065170790,0.7362398,3390.9,3390.3,2.94958]
[1721065171207,3.6853598,3390.9,3390.2,2.94966]
[1721065172462,2.4392,3390.8,3390.2,2.94966]
[1721065172664,5.38835,3390.8,3390.2,2.94966]
[1721065173629,5.38835,3390.8,3390.0,2.94977]
[1721065173816,0.96235698,3390.7,3390.1,2.94968]
[1721065174599,0.96235698,3390.7,3390.0,2.94977]
[1721065174802,0.96235698,3390.7,3390.1,2.94972]
[1721065175962,3.91160698,3390.7,3390.0,2.94977]
[1721065178882,2.94933,3390.6,3390.0,2.94977]
[1721065179080,2.94951,3390.4,3389.4,2.95033]
[1721065179282,2.94961,3390.3,3389.4,2.95029]
[1721065180243,2.94961,3390.3,3389.6,2.95014]
[1721065182996,2.94961,3390.3,3389.5,2.95028]
[1721065183195,5.50851,3390.4,3389.3,2.95041]
[1721065183196,5.33797,3390.1,3389.3,2.95041]
[1721065184285,2.9499,3390.0,3389.1,2.95056]
[1721065184734,2.9499,3390.0,3389.3,2.95039]
[1721065184962,2.3882,3390.1,3389.4,2.95037]
[1721065185122,0.6183762,3390.0,3389.4,2.95037]
[1721065186740,0.6183762,3390.0,3389.7,2.95011]
[1721065187050,0.845812,3390.2,3389.7,2.95011]
[1721065189056,0.845812,3390.2,3389.6,2.95018]
[1721065191267,3.795502,3390.2,3389.4,2.95036]
[1721065191474,2.94982,3390.1,3389.4,2.95036]
[1721065191760,0.9745322,3390.0,3389.4,2.95036]
[1721065192666,0.9745322,3390.0,3389.6,2.95017]
[1721065192843,0.845812,3390.2,3389.6,2.95017]
[1721065195727,0.845812,3390.2,3389.7,2.95011]
[1721065195933,2.9924398,3390.9,3389.7,0.05900362]
[1721065196129,2.2562,3390.9,3390.5,2.94936]
[1721065196373,2.559,3391.2,3390.5,2.94936]
[1721065196581,0.0354042,3391.1,3390.5,2.94936]
[1721065196879,0.0354042,3391.1,3390.7,2.94915]
[1721065196880,1.25403242,3391.1,3390.7,2.94915]
[1721065197059,7.3,3391.4,3390.9,2.94904]
[1721065198948,7.3,3391.4,3390.7,2.94915]
[1721065198949,1.08015012,3391.3,3390.7,2.94915]
[1721065199277,1.08015012,3391.3,3390.5,2.94939]
[1721065199434,2.559,3391.1,3390.3,2.94957]
[1721065199640,2.98999301,3391.0,3390.3,2.94957]
[1721065200358,1.11527117,3390.9,3389.9,2.94986]
[1721065200560,2.559,3390.7,3390.2,2.94967]
[1721065200894,0.66742712,3390.6,3390.2,2.94967]
[1721065201046,0.0351598,3390.6,3390.2,2.94967]
[1721065201447,3.0,3390.9,3390.2,2.94967]
[1721065201987,1.07991364,3390.8,3390.2,2.94967]
[1721065202281,5.94907,3390.9,3390.2,2.94967]
[1721065202480,2.5243371,3390.8,3390.2,2.94967]
[1721065202787,2.5243371,3390.8,3390.0,2.94985]
[1721065202788,4.3938493,3390.8,3390.0,2.94985]
[1721065203151,4.3938493,3390.8,3390.1,2.94975]
[1721065203979,0.03521741,3390.7,3390.2,2.94967]
[1721065204961,0.03521741,3390.7,3390.4,2.94942]
[1721065205173,2.2522,3391.4,3390.8,2.94915]
[1721065205375,0.294857,3391.4,3390.9,2.94906]
[1721065205771,1.07946552,3391.3,3390.9,2.94906]
[1721065205998,2.94838,3391.7,3390.9,2.94906]
[1721065206158,1.07944016,3391.6,3390.9,2.94906]
[1721065206361,0.62800202,3391.5,3390.9,2.94906]
[1721065206690,1.07944016,3391.4,3391.1,2.94888]
[1721065206908,0.62800202,3391.5,3391.1,2.94888]
[1721065207695,0.03567258,3391.4,3391.1,2.94888]
[1721065209769,8.20051,3391.8,3390.9,5.89805]
[1721065209983,5.43371252,3391.7,3390.9,2.94899]
[1721065210302,1.0799445,3391.6,3390.9,2.94899]
[1721065210714,0.03450186,3391.5,3390.9,2.94899]
[1721065211182,4.319151,3391.7,3390.9,2.94899]
[1721065211383,1.11492319,3391.6,3390.9,2.94899]
[1721065211567,2.44383617,3391.5,3390.9,2.94899]
[1721065211769,0.03444427,3391.4,3390.9,2.94899]
[1721065212065,0.03444427,3391.4,3391.0,2.94897]
[1721065212607,8.20052,3391.8,3391.0,2.94897]
[1721065212769,1.11579089,3391.7,3391.0,2.94897]
[1721065212969,1.08117387,3391.6,3391.0,2.94897]
[1721065213169,0.03452138,3391.5,3391.0,2.94897]
[1721065213407,0.03452138,3391.5,3391.1,2.94889]
[1721065213578,4.48235409,3391.7,3391.1,2.94889]
[1721065213786,0.03461799,3391.6,3391.1,2.94889]
[1721065214115,1.0063582,3391.6,3391.1,2.94889]
[1721065214519,1.0063582,3391.6,3390.7,2.94921]
[1721065214684,1.0063582,3391.6,3390.4,5.42506]
[1721065214685,1.0063582,3391.6,3390.9,2.94899]
[1721065215366,1.0063582,3391.6,3391.0,2.94895]
[1721065216407,3.9548282,3391.6,3390.7,2.9492]
[1721065216609,0.92069682,3391.5,3390.7,2.94916]
[1721065216771,0.03450282,3391.4,3390.8,2.9491]
[1721065216967,0.03450282,3391.4,3390.9,2.94906]
[1721065217411,0.03450282,3391.4,3391.0,2.94897]
[1721065217785,0.49235516,3391.4,3390.7,2.94921]
[1721065217987,0.49235516,3391.4,3390.9,2.94901]
[1721065219573,0.03450282,3391.4,3391.0,2.94898]
[1721065219970,5.94837,3391.7,3391.0,2.94898]
[1721065220310,0.03326132,3391.3,3391.0,2.94898]
[1721065220611,0.03320373,3391.2,3391.0,2.94898]
[1721065220903,5.94837,3391.7,3391.0,2.94898]
[1721065221068,0.03314613,3391.1,3391.0,2.94898]
[1721065221270,0.820057,3391.6,3391.0,2.94898]
[1721065221513,0.03314613,3391.1,3391.0,2.94898]
[1721065221680,0.820057,3391.6,3391.0,2.94898]
[1721065221879,0.03314613,3391.1,3391.0,2.94898]
[1721065222105,0.820057,3391.6,3391.0,2.94898]
[1721065222267,0.03314613,3391.1,3391.0,2.94898]
[1721065222468,5.94837,3391.7,3391.0,2.94898]
[1721065222667,0.03314613,3391.1,3391.0,2.94898]
[1721065222866,5.94837,3391.7,3391.0,2.94898]
[1721065223090,0.03314613,3391.1,3391.0,2.94898]
[1721065223277,10.3,3391.7,3391.0,2.94898]
[1721065223495,0.03316067,3391.1,3391.0,2.94898]
[1721065223704,10.3,3391.7,3391.1,2.94883]
[1721065224010,1.55004,3391.6,3391.1,2.94883]
[1721065224371,1.55004,3391.6,3391.2,2.9488]
[1721065224570,10.3,3391.7,3390.5,2.94933]
[1721065224571,7.3,3391.7,3391.4,2.94857]
[1721065225077,7.3,3391.7,3391.5,2.94848]
[1721065225593,0.03227561,3391.6,3391.5,2.94848]
[1721065226782,0.03227561,3391.6,3391.5,5.89702]
[1721065227106,7.3,3392.3,3392.0,5.8961]
[1721065227310,10.24742,3392.8,3392.0,5.8961]
[1721065227468,10.24742,3392.8,3392.0,2.94805]
[1721065227469,0.03237137,3392.2,3392.0,2.94805]
[1721065227673,0.815348,3392.7,3392.0,2.94805]
[1721065227887,0.03231799,3392.1,3392.0,5.89616]
[1721065228121,7.3,3392.8,3392.2,2.94788]
[1721065228274,4.250605,3392.7,3392.2,2.94788]
[1721065228610,4.28326832,3392.7,3392.2,2.94788]
[1721065229515,0.03266332,3392.7,3392.4,2.94775]
[1721065229669,0.03266332,3392.7,3392.6,2.94759]
[1721065229872,2.947,3393.3,3392.6,2.94759]
[1721065230120,0.03295461,3392.7,3392.3,2.94785]
[1721065230305,2.94725,3393.0,3392.2,2.94792]
[1721065230501,2.94725,3393.0,3392.0,2.94808]
[1721065230502,0.03282413,3392.6,3392.0,2.94808]
[1721065230699,5.38947,3392.7,3391.7,2.94832]
[1721065230923,0.03275539,3392.5,3391.8,2.94823]
[1721065231128,2.98044244,3392.6,3391.8,2.94823]
[1721065231289,0.03268652,3392.4,3391.9,2.94816]
[1721065231490,0.03268652,3392.4,3391.8,2.94823]
[1721065231491,0.03274407,3392.5,3392.0,2.94804]
[1721065231693,0.0326598,3392.3,3392.0,2.94804]
[1721065231904,0.03275391,3392.4,3392.0,2.94804]
[1721065232195,2.4419,3392.7,3392.0,2.94804]
[1721065232422,0.76733885,3392.6,3392.1,2.94802]
[1721065233011,0.76733885,3392.6,3391.7,2.9483]
[1721065233214,2.559,3392.5,3391.0,5.34585]